bitfinex-derivatives/quotes_BNBF0:USTF0_20250305
["timestamp","ask_amount","ask_price","bid_price","bid_amount"]
[1741197877120,0.776,593.0,592.07,0.33779789]
[1741197877318,0.776,593.0,592.41,0.29362133]
[1741197877824,0.776,593.0,592.4,0.29362381]
[1741197878215,0.86359536,593.3,592.4,0.29362381]
[1741197878417,2.59330538,594.04,592.4,0.29362381]
[1741197878418,1.50280937,593.29,592.4,0.29362381]
[1741197878623,0.30999889,593.28,592.4,0.29362381]
[1741197879223,1.19281048,593.27,592.4,0.29362381]
[1741197879418,0.30999889,593.26,592.07,1.82701451]
[1741197879625,1.17359425,593.26,592.07,1.82701451]
[1741197879826,0.30999889,593.25,592.37,0.2935978]
[1741197880018,0.30999889,593.25,592.07,1.82701451]
[1741197880222,0.768,593.24,592.07,0.33779789]
[1741197880426,0.768,593.24,592.08,0.29358665]
[1741197880619,0.768,593.24,592.09,0.33778648]
[1741197881527,0.29360027,593.23,592.09,0.33778648]
[1741197883028,0.30998264,593.22,592.09,0.33778648]
[1741197886224,0.768,593.24,592.09,0.33778648]
[1741197886527,0.29365354,593.21,592.09,0.33778648]
[1741197887131,0.33715441,593.2,592.09,0.33778648]
[1741197887331,1.52996489,593.2,592.09,0.33778648]
[1741197888432,1.19281048,593.19,592.09,0.33778648]
[1741197888834,0.31016088,593.18,592.09,0.33778648]
[1741197889131,1.19281048,593.18,592.09,0.33778648]
[1741197889432,0.31016859,593.17,592.09,0.33778648]
[1741197889636,0.33717715,593.16,592.09,0.33778648]
[1741197889837,0.31016859,593.15,592.09,0.33778648]
[1741197890034,1.529999,593.14,592.09,0.33778648]
[1741197890230,0.64736279,593.13,592.09,0.33778648]
[1741197890435,0.64736848,593.12,592.09,0.33778648]
[1741197890736,0.2936808,593.17,591.33,1.48921662]
[1741197890737,0.64737416,593.11,591.33,1.48921662]
[1741197890935,0.64737985,593.1,592.01,0.29370559]
[1741197891131,1.84019601,593.09,591.35,0.33820918]
[1741197891333,0.64739122,593.08,592.01,0.29379733]
[1741197891533,0.64739691,593.07,592.01,0.29379733]
[1741197891734,0.64739691,593.07,591.35,0.33820918]
[1741197891735,0.64740259,593.06,591.38,1.48921662]
[1741197891934,0.64740828,593.05,591.4,0.33818058]
[1741197892135,0.64741396,593.04,591.4,0.33818058]
[1741197892332,0.31016859,593.03,591.4,0.33818058]
[1741197892531,0.64744388,593.02,591.4,0.33818058]
[1741197892741,0.31018713,593.01,591.4,0.33818058]
[1741197893538,0.29380353,593.0,591.41,0.29380353]
[1741197893736,0.31018713,592.99,591.41,0.29380353]
[1741197894633,0.31018713,592.99,591.43,0.33816343]
[1741197895238,0.64746094,592.99,591.43,0.33816343]
[1741197895534,0.60398942,592.98,591.43,0.33816343]
[1741197895839,0.31018713,592.97,591.43,0.33816343]
[1741197896235,0.648,592.96,591.43,0.33816343]
[1741197896434,0.31018713,592.95,591.43,0.33816343]
[1741197897742,0.31017474,592.94,591.43,0.33816343]
[1741197897937,0.648,592.96,591.43,0.33816343]
[1741197898142,0.31017379,592.95,591.43,0.33816343]
[1741197898343,0.44917379,592.95,591.43,0.33816343]
[1741197898543,0.31017379,592.94,591.43,0.33816343]
[1741197899445,1.10317379,592.94,591.43,0.33816343]
[1741197899845,0.793,592.94,591.43,0.33816343]
[1741197900443,0.3101835,592.93,591.43,0.33816343]
[1741197900940,0.31019288,592.92,591.43,0.33816343]
[1741197901145,0.31019288,592.91,591.43,0.33816343]
[1741197901340,0.793,592.94,591.43,0.33816343]
[1741197901541,0.31018103,592.93,591.43,0.33816343]
[1741197902149,0.793,592.94,591.43,0.33816343]
[1741197902849,0.31015657,592.93,591.43,0.33816343]
[1741197905645,0.29380725,592.92,591.43,0.33816343]
[1741197907150,0.793,592.94,591.43,0.33816343]
[1741197908048,0.793,592.94,591.42,0.29380725]
[1741197910357,0.793,592.94,591.41,1.48921662]
[1741197910558,0.793,592.94,591.42,0.29375269]
[1741197911559,0.793,592.94,591.42,1.78296931]
[1741197913760,0.793,592.94,591.42,0.29375269]
[1741197915557,0.793,592.94,591.65,1.48921662]
[1741197917754,0.793,592.94,591.51,0.29362876]
[1741197917755,0.793,592.94,591.66,1.48921662]
[1741197919853,0.793,592.94,591.74,1.48921662]
[1741197921458,0.793,592.94,591.61,1.48921662]
[1741197922859,0.793,592.94,591.69,1.48921662]
[1741197924558,0.932,592.94,591.69,1.48921662]
[1741197924759,0.932,592.94,591.6,2.53373661]
[1741197924760,0.932,592.94,591.68,1.48921662]
[1741197926667,0.932,592.94,591.63,0.29366965]
[1741197932369,0.932,592.94,591.78,1.48921662]
[1741197934570,0.932,592.94,591.91,1.48921662]
[1741197936372,0.932,592.94,591.78,1.48921662]
[1741197936567,1.573,592.94,591.78,1.48921662]
[1741197937572,1.573,592.94,591.8,0.33795201]
[1741197937975,1.573,592.94,591.8,1.82716863]
[1741197939881,1.573,592.94,592.03,1.48921662]
[1741197940276,1.573,592.94,592.04,0.33781501]
[1741197943883,1.573,592.94,592.04,1.82703163]
[1741197945883,1.573,592.94,592.04,0.33781501]
[1741197950384,1.573,592.94,592.1,1.48921662]
[1741197950685,1.573,592.94,592.12,0.33776937]
[1741198031466,1.573,592.94,592.19,1.48921662]
[1741198032061,1.573,592.94,592.2,0.33772374]
[1741198053174,1.573,592.94,592.07,1.48921662]
[1741198053370,1.573,592.94,592.07,1.78290609]
[1741198053574,1.573,592.94,592.07,1.48921662]
[1741198053774,1.19281048,592.93,592.07,1.48921662]
[1741198053973,0.31020991,592.92,592.07,1.48921662]
[1741198054169,1.5301298,592.91,592.07,1.48921662]
[1741198054374,0.64753492,592.9,592.07,1.48921662]
[1741198054573,0.64754061,592.89,591.87,0.29375889]
[1741198054774,1.84035678,592.88,591.87,0.29375889]
[1741198054971,0.64755199,592.87,591.75,1.48921662]
[1741198055269,0.33734777,592.86,591.75,1.48921662]
[1741198055474,0.31028236,592.85,591.75,1.48921662]
[1741198055673,0.31028236,592.85,591.76,0.2938333]
[1741198055868,0.33735915,592.84,591.76,0.2938333]
[1741198056171,0.31028236,592.83,591.76,0.2938333]
[1741198056372,0.31028236,592.83,591.75,1.48921662]
[1741198056576,0.31028236,592.82,590.95,1.48921662]
[1741198056778,1.19281048,592.82,590.95,1.48921662]
[1741198056979,1.19281048,592.82,590.97,0.33842665]
[1741198056980,0.31038382,592.81,590.97,0.33842665]
[1741198057174,0.44938382,592.8,590.97,0.33842665]
[1741198057374,0.64777142,592.79,590.97,0.33842665]
[1741198057679,0.33739899,592.77,590.98,0.29398596]
[1741198057875,0.31038382,592.76,591.0,0.33840947]
[1741198058080,0.33741606,592.74,591.0,0.33840947]
[1741198058275,0.31038382,592.73,591.0,0.33840947]
[1741198058481,1.19281048,592.72,591.0,0.33840947]
[1741198058678,0.33743883,592.7,591.0,0.33840947]
[1741198058878,0.3103973,592.69,591.0,0.33840947]
[1741198059276,0.33745591,592.67,591.0,0.33840947]
[1741198059474,0.3103973,592.66,591.0,0.33840947]
[1741198059679,0.337473,592.64,591.0,0.33840947]
[1741198059879,0.3103973,592.63,591.0,0.33840947]
[1741198060078,0.3103973,592.62,591.0,0.33840947]
[1741198060273,0.337473,592.64,591.0,0.33840947]
[1741198060274,0.3103973,592.61,591.0,0.33840947]
[1741198060481,0.3103973,592.6,591.0,0.33840947]
[1741198060781,0.33750717,592.58,591.0,0.33840947]
[1741198060979,0.3103973,592.57,591.0,0.33840947]
[1741198061183,0.3103973,592.56,591.0,0.33840947]
[1741198061383,0.33750717,592.58,591.0,0.33840947]
[1741198061384,0.3103973,592.55,591.0,0.33840947]
[1741198061576,0.33750717,592.58,591.0,0.33840947]
[1741198061577,0.3103973,592.54,591.0,0.33840947]
[1741198061777,0.3103973,592.53,591.0,0.33840947]
[1741198061977,0.3103973,592.52,591.0,0.33840947]
[1741198062183,1.19281048,592.52,591.0,0.33840947]
[1741198062378,0.3103973,592.51,591.0,0.33840947]
[1741198062683,1.19281048,592.5,591.0,0.33840947]
[1741198062885,0.33756413,592.48,591.0,0.33840947]
[1741198063083,0.3103973,592.47,591.0,0.33840947]
[1741198063581,0.33758123,592.45,591.0,0.33840947]
[1741198063786,0.3103973,592.44,591.0,0.33840947]
[1741198063985,0.3103973,592.43,591.0,0.33840947]
[1741198064188,0.3103973,592.42,591.0,0.33840947]
[1741198064388,0.3103973,592.41,591.0,0.33840947]
[1741198064585,0.3103973,592.4,591.0,0.33840947]
[1741198064885,0.3103973,592.4,589.6,1.48921662]
[1741198064886,0.3103973,592.39,589.6,1.48921662]
[1741198065086,0.3103973,592.38,589.6,1.48921662]
[1741198065286,0.3103973,592.37,589.73,0.33913824]
[1741198065482,0.3103973,592.36,589.73,0.33913824]
[1741198065685,0.3103973,592.35,589.74,0.29441375]
[1741198065986,0.3103973,592.34,589.74,0.29441375]
[1741198066199,0.3103973,592.33,589.74,0.29441375]
[1741198066582,0.3103973,592.32,589.74,0.29441375]
[1741198066790,1.19281048,592.34,589.86,0.3390635]
[1741198066791,0.3103973,592.31,589.86,0.3390635]
[1741198067093,0.3103973,592.3,589.86,0.3390635]
[1741198067285,0.33767812,592.28,589.86,0.3390635]
[1741198067588,0.3103973,592.27,589.86,0.3390635]
[1741198067883,0.3103973,592.26,589.86,0.3390635]
[1741198068090,0.33770093,592.24,589.86,0.3390635]
[1741198068288,0.3103973,592.23,589.86,0.3390635]
[1741198068588,0.3103973,592.22,589.86,0.3390635]
[1741198068792,0.3103973,592.21,589.86,0.3390635]
[1741198068989,0.3103973,592.2,589.86,0.3390635]
[1741198069386,0.3103973,592.19,589.86,0.3390635]
[1741198069685,0.3103973,592.18,589.86,0.3390635]
[1741198069882,0.3103973,592.17,589.86,0.3390635]
[1741198070087,0.3103973,592.16,589.86,0.3390635]
[1741198070284,0.3103973,592.15,589.86,0.3390635]
[1741198070490,0.3103973,592.14,589.86,0.3390635]
[1741198070788,0.33782071,592.03,589.86,0.3390635]
[1741198070982,0.3103973,592.02,589.86,0.3390635]
[1741198071182,0.33788349,591.92,589.86,0.3390635]
[1741198071387,0.3103973,591.91,589.86,0.3390635]
[1741198071589,0.33790062,591.89,589.86,0.3390635]
[1741198072490,0.3103973,591.88,589.86,0.3390635]
[1741198073593,0.33791204,591.87,589.86,0.3390635]
[1741198074287,0.60484219,591.86,589.86,0.3390635]
[1741198074690,0.3103973,591.85,589.86,0.3390635]
[1741198074984,0.64832647,591.84,589.86,0.3390635]
[1741198075193,0.3103973,591.83,589.86,0.3390635]
[1741198075992,0.3103973,591.82,589.86,0.3390635]
[1741198076293,0.3103973,591.81,589.86,0.3390635]
[1741198076491,0.31073674,591.83,589.86,0.3390635]
[1741198076691,0.33792917,591.84,589.86,0.3390635]
[1741198080296,0.31067455,591.83,589.86,0.3390635]
[1741198080898,0.33792917,591.84,589.86,0.3390635]
[1741198081193,0.31067767,591.83,589.86,0.3390635]
[1741198082397,0.44967767,591.83,589.86,0.3390635]
[1741198082700,0.31067767,591.82,589.86,0.3390635]
[1741198084094,0.31071446,591.81,589.86,0.3390635]
[1741198084296,0.31071446,591.82,589.86,0.3390635]
[1741198084499,0.31071446,591.81,589.86,0.3390635]
[1741198084802,0.31071446,591.8,589.86,0.3390635]
[1741198084997,0.31071446,591.82,589.86,0.3390635]
[1741198085198,0.31071446,591.81,589.86,0.3390635]
[1741198085395,0.31071446,591.82,589.86,0.3390635]
[1741198085596,0.139,591.83,589.86,0.3390635]
[1741198085799,0.31072089,591.82,589.86,0.3390635]
[1741198087402,0.31072111,591.81,589.86,0.3390635]
[1741198087602,0.31072111,591.8,589.86,0.3390635]
[1741198087801,0.139,591.83,589.86,0.3390635]
[1741198087802,0.31072111,591.82,589.86,0.3390635]
[1741198088002,0.31072111,591.81,589.86,0.3390635]
[1741198088201,0.31072111,591.8,589.86,0.3390635]
[1741198088403,0.31072111,591.82,589.86,0.3390635]
[1741198088598,0.139,591.83,589.86,0.3390635]
[1741198088599,0.31072111,591.81,589.86,0.3390635]
[1741198088799,0.31072111,591.8,589.86,0.3390635]
[1741198089000,0.31072111,591.82,589.86,0.3390635]
[1741198089200,0.31072111,591.81,589.86,0.3390635]
[1741198089503,0.139,591.83,589.86,0.3390635]
[1741198089504,0.31072111,591.8,589.86,0.3390635]
[1741198089703,0.31072111,591.79,589.86,0.3390635]
[1741198089906,0.64875577,591.78,589.86,0.3390635]
[1741198090102,0.64876148,591.77,589.86,0.3390635]
[1741198090302,0.64876719,591.76,589.86,0.3390635]
[1741198090503,0.31079234,591.75,589.86,0.3390635]
[1741198091906,0.63239857,591.76,589.86,0.3390635]
[1741198092104,0.33797485,591.76,589.86,0.3390635]
[1741198093507,0.31072027,591.75,589.86,0.3390635]
[1741198093707,0.60513278,591.75,589.86,0.3390635]
[1741198093907,0.64870654,591.74,589.86,0.3390635]
[1741198094108,0.31072027,591.73,589.86,0.3390635]
[1741198095407,0.3379977,591.72,589.86,0.3390635]
[1741198095805,0.31079579,591.71,589.86,0.3390635]
[1741198096007,0.33800912,591.7,589.86,0.3390635]
[1741198096207,0.31079579,591.69,589.86,0.3390635]
[1741198096408,0.31079579,591.68,589.86,0.3390635]
[1741198096609,0.29449597,591.68,589.86,0.3390635]
[1741198096910,0.64882205,591.67,589.86,0.3390635]
[1741198097111,0.64882776,591.66,589.86,0.3390635]
[1741198097313,0.64883348,591.65,589.86,0.3390635]
[1741198097517,0.31079579,591.64,589.86,0.3390635]
[1741198099616,0.29451217,591.63,589.86,0.3390635]
[1741198099822,0.31079579,591.62,589.86,0.3390635]
[1741198100523,0.33806054,591.61,589.86,0.3390635]
[1741198101519,0.31088576,591.6,589.86,0.3390635]
[1741198102417,0.33806054,591.61,589.86,0.3390635]
[1741198102622,0.3108804,591.59,589.86,0.3390635]
[1741198102822,0.3108804,591.58,589.86,0.3390635]
[1741198103118,0.3108804,591.57,589.86,0.3390635]
[1741198104926,0.3108804,591.56,589.86,0.3390635]
[1741198105119,0.3108804,591.57,589.86,0.3390635]
[1741198105322,0.856,591.55,589.86,0.3390635]
[1741198105520,0.3108804,591.54,589.86,0.3390635]
[1741198105719,0.856,591.55,589.86,0.3390635]
[1741198105920,0.31097756,591.54,589.86,0.3390635]
[1741198106520,0.33811198,591.52,589.86,0.3390635]
[1741198106726,0.31097756,591.51,589.86,0.3390635]
[1741198106927,0.33812913,591.49,589.86,0.3390635]
[1741198107125,0.31097756,591.48,589.86,0.3390635]
[1741198107321,0.33814628,591.46,589.86,0.3390635]
[1741198107520,0.31100925,591.45,589.86,0.3390635]
[1741198107720,0.33814628,591.46,589.86,0.3390635]
[1741198108221,0.31102291,591.45,589.86,0.3390635]
[1741198109025,0.33814628,591.46,589.86,0.3390635]
[1741198109222,0.31119631,591.45,589.86,0.3390635]
[1741198109928,0.31119631,591.44,589.86,0.3390635]
[1741198110128,0.31119631,591.43,589.86,0.3390635]
[1741198110328,0.31119631,591.45,589.86,0.3390635]
[1741198110527,0.31119631,591.44,589.86,0.3390635]
[1741198110723,0.31118835,591.43,589.86,0.3390635]
[1741198110927,0.31118835,591.45,589.86,0.3390635]
[1741198111622,0.31118835,591.44,589.86,0.3390635]
[1741198111929,0.31118835,591.43,589.86,0.3390635]
[1741198112130,0.31118835,591.45,589.86,0.3390635]
[1741198112328,0.31118835,591.44,589.86,0.3390635]
[1741198112529,0.31118835,591.43,589.86,0.3390635]
[1741198112726,0.31118835,591.44,589.86,0.3390635]
[1741198112927,0.31118835,591.43,589.86,0.3390635]
[1741198113124,0.31118835,591.44,589.86,0.3390635]
[1741198113323,0.31118835,591.43,589.86,0.3390635]
[1741198113624,0.33817487,591.41,589.86,0.3390635]
[1741198113825,0.31118835,591.4,589.86,0.3390635]
[1741198114032,0.33817487,591.41,589.86,0.3390635]
[1741198114231,0.31120585,591.4,589.86,0.3390635]
[1741198114531,0.31120585,591.39,589.86,0.3390635]
[1741198115125,0.33819774,591.37,589.86,0.3390635]
[1741198115426,0.31120585,591.36,589.86,0.3390635]
[1741198115631,0.3382149,591.34,589.86,0.3390635]
[1741198115934,0.31116591,591.33,589.86,0.3390635]
[1741198116632,0.33822634,591.32,589.86,0.3390635]
[1741198116832,0.31116591,591.31,589.86,0.3390635]
[1741198117030,0.33823778,591.3,589.86,0.3390635]
[1741198117231,0.31116591,591.29,589.86,0.3390635]
[1741198117430,0.64928858,591.28,589.86,0.3390635]
[1741198117631,0.31103936,591.27,589.86,0.3390635]
[1741198118426,0.33826066,591.26,589.86,0.3390635]
[1741198119130,0.31108962,591.25,589.86,0.3390635]
[1741198119330,0.31111103,591.24,589.86,0.3390635]
[1741198119529,0.64938885,591.23,589.86,0.3390635]
[1741198119725,0.64939457,591.22,589.86,0.3390635]
[1741198120033,0.6494003,591.21,589.86,0.3390635]
[1741198120232,0.64940602,591.2,589.86,0.3390635]
[1741198120427,0.64941174,591.19,589.86,0.3390635]
[1741198120626,0.64941746,591.18,589.86,0.3390635]
[1741198120828,0.64942319,591.17,589.86,0.3390635]
[1741198121026,0.64942891,591.16,589.86,0.3390635]
[1741198121234,0.64943463,591.15,589.86,0.3390635]
[1741198121433,0.64944035,591.14,589.86,0.3390635]
[1741198121634,0.751,591.28,589.86,0.3390635]
[1741198121635,0.64944608,591.13,589.86,0.3390635]
[1741198121834,0.751,591.28,589.86,0.3390635]
[1741198121835,0.6494518,591.12,589.86,0.3390635]
[1741198122130,0.64945753,591.11,589.86,0.3390635]
[1741198122334,0.31111103,591.1,589.86,0.3390635]
[1741198122534,0.3383465,591.11,589.86,0.3390635]
[1741198122734,0.31111428,591.1,589.86,0.3390635]
[1741198122932,0.33835794,591.09,589.86,0.3390635]
[1741198123127,0.31111428,591.08,589.86,0.3390635]
[1741198123637,0.33835794,591.09,589.86,0.3390635]
[1741198124634,0.708,591.08,589.86,0.3390635]
[1741198126842,0.848,591.08,589.86,0.3390635]
[1741198128942,0.31113753,591.07,589.86,0.3390635]
[1741198129639,0.29474041,591.06,589.86,0.3390635]
[1741198129839,0.31113753,591.05,589.86,0.3390635]
[1741198130037,0.29474041,591.06,589.86,0.3390635]
[1741198130239,0.31120902,591.05,589.86,0.3390635]
[1741198130741,0.31120902,591.04,589.86,0.3390635]
[1741198130943,0.31120902,591.03,589.86,0.3390635]
[1741198131140,0.31120902,591.02,589.86,0.3390635]
[1741198131541,0.31120902,591.01,589.86,0.3390635]
[1741198131736,0.29474041,591.06,589.86,0.3390635]
[1741198132045,0.31126223,591.05,589.86,0.3390635]
[1741198132644,0.29476537,591.01,589.86,0.3390635]
[1741198132841,0.31126223,591.0,589.86,0.3390635]
[1741198133740,0.31126223,591.0,588.77,1.48921662]
[1741198133939,0.31126223,591.0,588.88,0.33962776]
[1741198134340,0.31126223,591.0,589.85,0.29477286]
[1741198135243,0.3384152,590.99,589.85,0.29477286]
[1741198135444,0.31126223,590.98,588.88,0.33962776]
[1741198135645,0.33842665,590.97,589.85,0.29473292]
[1741198135845,0.31126223,590.96,589.85,0.29473292]
[1741198136247,0.3384381,590.95,589.85,0.29473292]
[1741198138443,0.3384381,590.95,588.88,0.33962776]
[1741198138643,0.3384381,590.95,589.85,0.29470796]
[1741198139947,0.31120685,590.94,589.85,0.29470796]
[1741198140151,0.64966924,590.93,589.85,0.29470796]
[1741198140349,0.64967497,590.92,589.85,0.29470796]
[1741198140549,0.33846101,590.91,589.85,0.29470796]
[1741198140849,0.31125285,590.9,589.85,0.29470796]
[1741198141148,0.33847247,590.89,589.85,0.29470796]
[1741198143451,0.31117026,590.88,589.85,0.29470796]
[1741198144046,0.33847247,590.89,589.85,0.29470796]
[1741198144854,0.33847247,590.89,589.86,0.3390635]
[1741198145455,0.708,591.08,589.86,0.3390635]
[1741198148058,0.848,591.08,589.86,0.3390635]
[1741198149855,1.543,591.08,589.86,0.3390635]
[1741198177284,1.543,591.08,589.95,1.48921662]
[1741198177484,1.543,591.08,589.96,0.33900603]
[1741198179383,1.543,591.08,590.11,1.48921662]
[1741198179684,1.543,591.08,590.12,0.33891411]
[1741198195093,1.543,591.08,590.23,1.48921662]
[1741198195288,1.543,591.08,590.24,0.33884521]
[1741198203001,0.22255908,591.08,590.32,1.48921662]
[1741198203202,0.29441375,591.89,590.32,1.48921662]
[1741198203403,0.29441375,591.89,590.34,0.33878781]
[1741198204197,0.7,591.88,590.34,0.33878781]
[1741198204697,0.6050345,591.87,590.34,0.33878781]
[1741198204897,0.33791775,591.86,590.34,0.33878781]
[1741198208006,0.7,591.88,590.34,0.33878781]
[1741198208598,0.483,591.87,590.34,0.33878781]
[1741198216611,0.77731167,591.87,590.34,0.33878781]
[1741198217114,0.483,591.87,590.34,0.33878781]
[1741198221420,0.565,591.86,590.34,0.33878781]
[1741198222519,0.31066373,591.85,590.34,0.33878781]
[1741198222715,0.60498909,591.85,590.34,0.33878781]
[1741198222919,0.29432536,591.85,590.34,0.33878781]
[1741198224523,0.565,591.86,590.34,0.33878781]
[1741198227826,0.634,591.85,590.34,0.33878781]
[1741198235430,0.634,591.85,590.54,1.48921662]
[1741198235627,0.634,591.85,590.56,0.3386616]
[1741198237139,0.634,591.85,590.6,1.48921662]
[1741198237342,0.634,591.85,590.62,0.3386272]
[1741198240638,0.634,591.85,590.73,1.48921662]
[1741198243536,0.716,591.84,590.71,1.48921662]
[1741198246042,0.716,591.84,590.77,1.48921662]
[1741198248649,0.716,591.84,590.75,1.48921662]
[1741198249043,0.716,591.84,590.77,0.33854122]
[1741198254148,0.652,591.83,590.77,0.33854122]
[1741198262454,0.652,591.83,590.95,1.48921662]
[1741198262655,0.652,591.83,590.97,0.33842665]
[1741198263451,0.652,591.83,591.13,1.48921662]
[1741198264953,0.652,591.83,591.12,1.48921662]
[1741198266555,0.652,591.83,591.13,1.48921662]
[1741198266755,0.652,591.83,591.14,0.33832932]
[1741198268758,0.652,591.83,591.17,1.48921662]
[1741198269158,0.652,591.83,591.18,0.33830643]
[1741198270260,0.652,591.83,591.31,1.48921662]
[1741198270460,0.652,591.83,591.31,1.82744868]
[1741198271457,0.652,591.83,591.31,0.33823206]
[1741198292678,0.652,591.83,591.37,1.48921662]
[1741198292876,0.652,591.83,591.38,0.33819202]
[1741198293686,0.12138444,591.83,591.38,0.33819202]
[1741198293880,0.02139142,591.83,591.38,0.33819202]
[1741198295087,0.716,591.84,591.38,0.33819202]
[1741198296686,0.40438317,591.84,591.38,0.33819202]
[1741198297088,0.07226765,591.84,591.38,0.33819202]
[1741198297681,0.0139949,591.84,591.38,0.33819202]
[1741198298488,0.0139949,591.84,591.58,1.48921662]
[1741198298684,0.0139949,591.84,591.59,0.33807197]
[1741198300789,0.29385687,592.85,591.59,0.33807197]
[1741198301089,0.546,592.81,591.59,0.33807197]
[1741198303891,0.29391395,592.67,591.59,0.33807197]
[1741198306591,0.639,592.73,591.59,0.33807197]
[1741198306893,0.29391644,592.67,591.59,0.33807197]
[1741198313595,0.639,592.73,591.59,0.33807197]
[1741198318906,0.29390154,592.72,591.59,0.33807197]
[1741198321403,0.639,592.73,591.59,0.33807197]
[1741198322905,0.29393009,592.56,591.59,0.33807197]
[1741198323209,0.639,592.73,591.59,0.33807197]
[1741198323408,0.29391768,592.61,591.59,0.33807197]
[1741198324610,0.639,592.73,591.59,0.33807197]
[1741198324811,0.29393754,592.53,591.59,0.33807197]
[1741198327611,0.89353373,592.68,591.59,0.33807197]
[1741198327809,0.29395119,592.47,591.59,0.33807197]
[1741198330608,1.19801719,592.67,591.59,0.33807197]
[1741198330914,0.29396113,592.46,591.59,0.33807197]
[1741198331315,0.29396113,592.46,591.04,1.48921662]
[1741198331518,0.643,592.34,591.05,0.33838084]
[1741198332016,0.643,592.34,591.06,0.29405552]
[1741198332915,0.643,592.34,591.08,0.33836367]
[1741198336116,0.643,592.34,591.1,1.48921662]
[1741198336317,0.643,592.34,591.12,0.33834077]
[1741198340316,0.643,592.33,591.12,0.33834077]
[1741198342817,0.643,592.33,591.36,1.48921662]
[1741198344419,0.643,592.33,591.12,0.33834077]
[1741198351616,0.643,592.33,591.17,1.48921662]
[1741198351821,0.29405055,592.32,591.18,0.33830643]
[1741198352021,0.643,592.33,591.18,0.33830643]
[1741198353323,0.643,592.33,591.21,1.48921662]
[1741198354319,0.643,592.33,591.22,0.33828354]
[1741198357627,0.643,592.33,591.46,1.48921662]
[1741198357821,0.643,592.33,591.47,0.33814056]
[1741198359530,0.643,592.33,591.53,1.48921662]
[1741198359727,0.643,592.33,591.54,0.33810055]
[1741198361031,0.643,592.33,591.66,1.48921662]
[1741198363031,0.643,592.33,591.54,0.33810055]
[1741198366637,1.428,592.33,591.54,0.33810055]
[1741198367438,1.428,592.33,591.63,1.48921662]
[1741198367741,1.428,592.33,591.64,0.3380434]
[1741198390764,1.428,592.33,591.68,1.48921662]
[1741198390958,1.428,592.33,591.69,0.33801483]
[1741198392063,1.428,592.33,591.75,1.48921662]
[1741198394661,1.428,592.33,591.78,1.48921662]
[1741198396668,1.428,592.33,591.69,0.33801483]
[1741198396869,1.428,592.33,591.71,0.29383206]
[1741198397167,1.428,592.33,591.72,0.3379977]
[1741198399470,0.785,592.33,591.72,0.3379977]
[1741198417087,0.1466401,592.33,591.72,0.3379977]
[1741198417892,0.0285303,592.33,591.72,0.3379977]
[1741198425890,0.597,592.37,591.72,0.3379977]
[1741198427097,0.12073082,592.37,591.72,0.3379977]
[1741198427497,0.06876595,592.37,591.72,0.3379977]
[1741198428196,0.01349344,592.37,591.72,0.3379977]
[1741198428700,0.01349344,592.37,591.83,1.48921662]
[1741198428904,0.01349344,592.37,591.84,0.33792917]
[1741198430605,0.01349344,592.37,591.85,1.48921662]
[1741198430798,0.01349344,592.37,591.86,0.33791775]
[1741198447520,0.01349344,592.37,591.23,1.48921662]
[1741198447719,0.01349344,592.37,591.25,0.33826638]
[1741198447920,0.01349344,592.37,591.77,0.29380477]
[1741198448120,0.01349344,592.37,591.25,0.33826638]
[1741198449223,0.01349344,592.37,591.26,0.29386928]
[1741198449423,0.01349344,592.37,591.28,0.33824922]
[1741198451519,0.29387548,592.62,591.28,0.33824922]
[1741198453521,0.606,592.98,591.28,0.33824922]
[1741198453725,0.33729087,592.96,591.28,0.33824922]
[1741198453924,0.29387424,592.62,591.28,0.33824922]
[1741198454119,0.33729087,592.96,591.28,0.33824922]
[1741198454327,0.3102361,592.95,591.28,0.33824922]
[1741198454527,0.33730794,592.93,591.28,0.33824922]
[1741198454720,0.3102361,592.92,591.28,0.33824922]
[1741198454924,0.33732501,592.9,591.28,0.33824922]
[1741198455124,0.3102361,592.89,591.28,0.33824922]
[1741198455322,0.33733639,592.88,591.28,0.33824922]
[1741198455525,0.3102361,592.87,591.28,0.33824922]
[1741198455827,0.33734777,592.86,591.28,0.33824922]
[1741198456123,0.3102361,592.85,591.28,0.33824922]
[1741198456328,0.33735915,592.84,591.28,0.33824922]
[1741198456527,0.3102361,592.83,591.28,0.33824922]
[1741198456721,0.33737053,592.82,591.28,0.33824922]
[1741198456923,0.3102361,592.81,591.28,0.33824922]
[1741198457122,0.33738191,592.8,591.28,0.33824922]
[1741198463931,0.6040999,592.79,591.28,0.33824922]
[1741198464132,0.29388913,592.79,591.28,0.33824922]
[1741198465628,0.33738191,592.8,591.28,0.33824922]
[1741198465836,0.29386928,592.78,591.28,0.33824922]
[1741198468532,0.33738191,592.8,591.28,0.33824922]
[1741198468938,0.29386928,592.77,591.28,0.33824922]